fUSD/lending_fUSD_20260423
["ID","MTS","AMOUNT","RATE_DAILY","PERIOD"]
[421012227,1776922817651,157.0,6.348e-05,3]
[421012228,1776922865964,465.0,6.348e-05,3]
[421012229,1776922926827,442.0,6.348e-05,3]
[421012230,1776922991089,420.0,6.348e-05,3]
[421012231,1776923032933,166.0,6.348e-05,3]
[421012232,1776923086103,150.0,6.508e-05,2]
[421012233,1776923108121,399.0,6.348e-05,3]
[421012234,1776923167650,379.0,6.348e-05,3]
[421012236,1776923233399,360.0,6.348e-05,3]
[421012237,1776923286081,342.0,6.348e-05,3]
[421012238,1776923299231,1245.55301121,0.000165,120]
[421012239,1776923351182,325.0,6.348e-05,3]
[421012240,1776923389103,151.0,6.353e-05,2]
[421012241,1776923408597,157.0,6.348e-05,3]
[421012251,1776923433007,-578.20924308,6.709e-05,2]
[421012252,1776923433017,-500.0,6.709e-05,2]
[421012253,1776923433026,-210.67170743,6.709e-05,2]
[421012254,1776923433035,-300.0,6.721e-05,2]
[421012255,1776923433044,-1200.0,6.721e-05,2]
[421012256,1776923433054,-721.12765535,6.722e-05,2]
[421012257,1776923433063,-200.0,6.722e-05,2]
[421012258,1776923433073,-1428.38747117,6.722e-05,2]
[421012259,1776923433082,-9552.16786547,6.722e-05,2]
[421012260,1776923433091,-202.55142124,6.722e-05,2]
[421012261,1776923433100,-151.0,6.722e-05,2]
[421012262,1776923433109,-743.50770149,6.722e-05,2]
[421012263,1776923433118,-152.0,6.722e-05,2]
[421012264,1776923433128,-152.25265574,6.722e-05,2]
[421012265,1776923433136,-174.61919141,6.722e-05,2]
[421012266,1776923433146,-300.29572809,6.722e-05,2]
[421012267,1776923433155,-210.02628787,6.722e-05,2]
[421012268,1776923433164,-461.59565017,6.722e-05,2]
[421012269,1776923433173,-283.3999422,6.722e-05,2]
[421012270,1776923433182,-500.0,6.725e-05,2]
[421012271,1776923433191,-518.05747703,6.725e-05,2]
[421012272,1776923433201,-500.0,6.725e-05,2]
[421012273,1776923433210,-500.0,6.725e-05,2]
[421012274,1776923433220,-500.0,6.725e-05,2]
[421012275,1776923433229,-500.0,6.725e-05,2]
[421012276,1776923433239,-500.0,6.725e-05,2]
[421012277,1776923433248,-500.0,6.725e-05,2]
[421012278,1776923433258,-131.89981955,6.725e-05,2]
[421012279,1776923433270,-240.7321817,6.725e-05,2]
[421012280,1776923433279,-181.84680563,6.725e-05,2]
[421012281,1776923433288,-199.66472906,6.725e-05,2]
[421012282,1776923433308,-411.29852585,6.725e-05,2]
[421012283,1776923433317,-500.0,6.725e-05,2]
[421012284,1776923433326,-390.11030913,6.725e-05,2]
[421012285,1776923433335,-98.87449656,6.725e-05,2]
[421012286,1776923433347,-401.12550344,6.725e-05,2]
[421012287,1776923433356,-500.0,6.725e-05,2]
[421012288,1776923433366,-172.8865923,6.725e-05,2]
[421012289,1776923433377,-278.617552,6.725e-05,2]
[421012290,1776923433397,-48.4958557,6.725e-05,2]
[421012291,1776923433407,-500.0,6.725e-05,2]
[421012292,1776923433416,-500.0,6.725e-05,2]
[421012293,1776923433426,-500.0,6.725e-05,2]
[421012294,1776923433435,-500.0,6.725e-05,2]
[421012295,1776923433445,-500.0,6.725e-05,2]
[421012296,1776923433454,-500.0,6.725e-05,2]
[421012297,1776923433463,-500.0,6.725e-05,2]
[421012298,1776923433473,-500.0,6.725e-05,2]
[421012299,1776923433482,-500.0,6.725e-05,2]
[421012300,1776923433491,-429.15812178,6.725e-05,2]
[421012301,1776923433501,-598.3209426,6.725e-05,2]
[421012302,1776923433510,-500.0,6.725e-05,2]
[421012303,1776923433519,-500.0,6.725e-05,2]
[421012304,1776923433528,-500.0,6.725e-05,2]
[421012305,1776923433538,-500.0,6.725e-05,2]
[421012306,1776923433547,-500.0,6.725e-05,2]
[421012307,1776923433557,-500.0,6.725e-05,2]
[421012308,1776923433566,-600.0,6.725e-05,2]
[421012309,1776923433576,-507.5382709,6.725e-05,2]
[421012310,1776923433585,-500.0,6.725e-05,2]
[421012311,1776923433594,-500.0,6.725e-05,2]
[421012312,1776923433603,-500.0,6.725e-05,2]
[421012313,1776923433613,-62.66446015,6.725e-05,2]
[421012314,1776923433624,-437.33553985,6.725e-05,2]
[421012315,1776923433634,-500.0,6.725e-05,2]
[421012316,1776923433644,-500.0,6.725e-05,2]
[421012317,1776923433653,-500.0,6.725e-05,2]
[421012318,1776923433662,-406.91186845,6.725e-05,2]
[421012319,1776923433671,-500.0,6.725e-05,2]
[421012320,1776923433681,-500.0,6.725e-05,2]
[421012321,1776923433690,-387.81353252,6.725e-05,2]
[421012322,1776923433702,-112.18646748,6.725e-05,2]
[421012323,1776923433711,-500.0,6.725e-05,2]
[421012324,1776923433720,-500.0,6.725e-05,2]
[421012325,1776923433730,-500.0,6.725e-05,2]
[421012326,1776923433739,-22680.93912416,6.726e-05,2]
[421012327,1776923433750,-18133.21426003,6.726e-05,2]
[421012328,1776923433762,-193821.79933202,6.726e-05,2]
[421012329,1776923433772,-1630.87669183,6.726e-05,2]
[421012330,1776923433783,-817.79588592,6.726e-05,2]
[421012331,1776923438400,-22352.34100604,6.726e-05,2]
[421012332,1776923438411,-411.0,6.757e-05,2]
[421012333,1776923438421,-153.84497306,6.757e-05,2]
[421012334,1776923438430,-500.0,6.764e-05,2]
[421012335,1776923438440,-459.0,6.771e-05,2]
[421012336,1776923438449,-9905.5980765,6.777e-05,2]
[421012337,1776923438459,-336.40846727,6.781e-05,2]
[421012338,1776923438468,-500.0,6.781e-05,2]
[421012339,1776923438477,-281.45372572,6.781e-05,2]
[421012340,1776923438486,-500.0,6.781e-05,2]
[421012341,1776923438496,-500.0,6.781e-05,2]
[421012342,1776923438505,-500.0,6.781e-05,2]
[421012343,1776923438514,-500.0,6.781e-05,2]
[421012344,1776923438524,-551.8349539,6.781e-05,2]
[421012345,1776923438533,-150.99,6.782e-05,2]
[421012346,1776923438543,-9999.99,6.782e-05,2]
[421012347,1776923438552,-299.99,6.782e-05,2]
[421012348,1776923438562,-4800.92,6.782e-05,2]
[421012349,1776923438571,-7622.71,6.782e-05,2]
[421012350,1776923438580,-11412.1,6.782e-05,2]
[421012351,1776923438589,-2813.19,6.782e-05,2]
[421012352,1776923438599,-651.94,6.782e-05,2]
[421012353,1776923438608,-962.22236805,6.782e-05,2]
[421012354,1776923438620,-6411.30763195,6.782e-05,2]
[421012355,1776923438629,-42582.17669772,6.782e-05,2]
[421012436,1776923440874,-0.00170068,6.782e-05,2]
[421012437,1776923440891,-11389.78747162,6.782e-05,2]
[421012445,1776923445262,-271.96277641,6.782e-05,2]
[421012446,1776923445390,-16453.62135357,6.782e-05,2]
[421012447,1776923445399,-100902.8980091,6.783e-05,2]
[421012448,1776923445409,-411.0,6.783e-05,2]
[421012449,1776923445419,-411.0,6.792e-05,2]
[421012450,1776923445428,-150.0,6.8e-05,2]
[421012451,1776923445437,-411.0,6.806e-05,2]
[421012452,1776923445447,-611.81980635,6.807e-05,2]
[421012453,1776923445456,-254.0,6.819e-05,2]
[421012454,1776923445466,-500.0,6.819e-05,2]
[421012455,1776923445475,-524.56,6.825e-05,2]
[421012456,1776923445484,-258.0,6.832e-05,2]
[421012457,1776923445495,-10272.10520533,6.832e-05,2]
[421012458,1776923445504,-411.0,6.841e-05,2]
[421012459,1776923445514,-426.0,6.846e-05,2]
[421012460,1776923445523,-887.0,6.856e-05,2]
[421012461,1776923445533,-411.0,6.868e-05,2]
[421012462,1776923445543,-500.0,6.874e-05,2]
[421012463,1776923445553,-411.0,6.881e-05,2]
[421012464,1776923445563,-411.0,6.881e-05,2]
[421012465,1776923445572,-478.3609749,6.882e-05,2]
[421012466,1776923445582,-8491.41064999,6.887e-05,2]
[421012467,1776923445591,-411.0,6.888e-05,2]
[421012468,1776923445601,-411.0,6.894e-05,2]
[421012469,1776923445611,-471.0,6.9e-05,5]
[421012470,1776923445620,-2656.565,6.9e-05,2]
[421012471,1776923445630,-199.516,6.9e-05,2]
[421012472,1776923445639,-322.0,6.904e-05,2]
[421012473,1776923445649,-500.0,6.929e-05,2]
[421012474,1776923445658,-217.0,6.932e-05,2]
[421012475,1776923445668,-19413.02267407,6.934e-05,2]
[421012476,1776923445678,-411.0,6.941e-05,2]
[421012477,1776923445687,-411.0,6.949e-05,2]
[421012478,1776923445697,-2131.28463746,6.951e-05,2]
[421012479,1776923445706,-1000.0,6.97e-05,2]
[421012480,1776923445715,-500.0,6.97e-05,2]
[421012481,1776923445725,-500.0,6.97e-05,2]
[421012482,1776923445735,-1000.0,6.97e-05,2]
[421012483,1776923445744,-411.0,6.971e-05,2]
[421012484,1776923445754,-500.0,6.973e-05,2]
[421012485,1776923445764,-500.0,6.973e-05,2]
[421012486,1776923445773,-500.0,6.973e-05,2]
[421012487,1776923445782,-500.0,6.973e-05,2]
[421012488,1776923445792,-500.0,6.973e-05,2]
[421012489,1776923445801,-500.0,6.973e-05,2]
[421012490,1776923445810,-171.93182394,6.973e-05,2]
[421012491,1776923445820,-500.0,6.973e-05,2]
[421012492,1776923445830,-500.0,6.973e-05,2]
[421012493,1776923445839,-500.0,6.984e-05,2]
[421012494,1776923445849,-625.004,6.989e-05,2]
[421012495,1776923445858,-1349.0,6.989e-05,2]
[421012496,1776923445867,-1048.0,6.989e-05,2]
[421012497,1776923445877,-3530.0,6.989e-05,2]
[421012498,1776923445886,-1266.0,6.989e-05,2]
[421012499,1776923445895,-151.758,6.989e-05,2]
[421012500,1776923445905,-927.0,6.989e-05,2]
[421012502,1776923445914,-444.093,6.989e-05,2]
[421012503,1776923445923,-6032.0,6.989e-05,2]
[421012504,1776923445933,-2474.0,6.989e-05,2]
[421012505,1776923445942,-151.0,6.997e-05,2]
[421012506,1776923445952,-150.0,6.999e-05,2]
[421012507,1776923445961,-581.0,7e-05,5]
[421012508,1776923445970,-28494.34699306,7e-05,2]
[421012509,1776923446335,-13971.08314113,7e-05,2]
[421012738,1776924160838,250.0,6.54e-05,2]
[421012740,1776924321801,150.0,6.288e-05,2]
[421012741,1776924321836,150.0,6.288e-05,2]
[421012742,1776924322777,150.0,6.288e-05,2]
[421012743,1776924326258,150.0,6.288e-05,2]
[421012744,1776924331050,150.0,6.288e-05,2]
[421012745,1776924338524,150.0,6.288e-05,2]
[421012746,1776924338695,150.0,6.288e-05,2]
[421012749,1776924562326,151.0,6.355e-05,2]
[421012750,1776924562582,8799.01,6.515e-05,2]
[421012751,1776924562611,10000.01,6.515e-05,2]
[421012752,1776924562639,3553.321,6.515e-05,2]
[421012777,1776924631894,-200.0,6.6e-05,2]
[421012780,1776924631904,-1200.0,6.609e-05,2]
[421012783,1776924631913,-193.3206386,6.609e-05,2]
[421012785,1776924631923,-500.0,6.61e-05,2]
[421012787,1776924631931,-500.0,6.61e-05,2]
[421012789,1776924631940,-500.0,6.61e-05,2]
[421012791,1776924631949,-423.41538016,6.61e-05,2]
[421012793,1776924631961,-76.58461984,6.61e-05,2]
[421012795,1776924631970,-500.0,6.61e-05,2]
[421012797,1776924631979,-427.974,6.61e-05,2]
[421012799,1776924631988,-578.20924308,6.61e-05,2]
[421012801,1776924631998,-500.0,6.61e-05,2]
[421012803,1776924632007,-210.7245527,6.61e-05,2]
[421012805,1776924632016,-500.0,6.61e-05,2]
[421012807,1776924632025,-150.0,6.62e-05,2]
[421012809,1776924632035,-200.0,6.621e-05,2]
[421012811,1776924632046,-721.12765535,6.621e-05,2]
[421012812,1776924632055,-9552.16786547,6.621e-05,2]
[421012813,1776924632064,-151.0,6.621e-05,2]
[421012814,1776924632073,-743.50770149,6.621e-05,2]
[421012815,1776924632082,-1428.38747117,6.621e-05,2]
[421012816,1776924632092,-174.61919141,6.621e-05,2]
[421012817,1776924632101,-150.0,6.637e-05,2]
[421012818,1776924632111,-500.0,6.665e-05,2]
[421012819,1776924632120,-353.43021102,6.676e-05,2]
[421012820,1776924632129,-500.0,6.72e-05,2]
[421012821,1776924632138,-563.0,6.723e-05,2]
[421012822,1776924632148,-432.0,6.769e-05,2]
[421012823,1776924632157,-500.0,6.775e-05,2]
[421012824,1776924632166,-213.89552016,6.79e-05,2]
[421012825,1776924632176,-432.0,6.818e-05,2]
[421012826,1776924632185,-500.0,6.83e-05,2]
[421012827,1776924632194,-432.0,6.837e-05,2]
[421012828,1776924632204,-175.5,6.837e-05,2]
[421012829,1776924632214,-175.5,6.837e-05,2]
[421012830,1776924632223,-175.5,6.837e-05,2]
[421012831,1776924632232,-292.45842719,6.84e-05,2]
[421012832,1776924632241,-3124.29358241,6.86e-05,2]
[421012833,1776924632250,-432.0,6.87e-05,2]
[421012834,1776924632259,-432.0,6.878e-05,2]
[421012835,1776924632268,-500.0,6.885e-05,2]
[421012836,1776924632278,-151.0,6.885e-05,2]
[421012837,1776924632287,-432.0,6.898e-05,2]
[421012838,1776924632296,-150.0,6.9e-05,2]
[421012839,1776924632306,-2125.252,6.9e-05,2]
[421012840,1776924632315,-159.613,6.906e-05,2]
[421012841,1776924632324,-307.0,6.91e-05,2]
[421012842,1776924632334,-257.72629871,6.93e-05,2]
[421012843,1776924632344,-500.0,6.94e-05,2]
[421012844,1776924632352,-153.84497306,6.953e-05,2]
[421012845,1776924632361,-1221.435,6.953e-05,2]
[421012846,1776924632370,-927.0,6.953e-05,2]
[421012847,1776924632380,-6032.0,6.953e-05,2]
[421012848,1776924632389,-2474.0,6.953e-05,2]
[421012849,1776924632399,-151.0,6.962e-05,2]
[421012850,1776924632408,-151.0,6.962e-05,2]
[421012851,1776924632418,-374.73688903,6.964e-05,2]
[421012852,1776924632427,-214.35090242,6.964e-05,2]
[421012853,1776924632436,-455.36899362,6.964e-05,2]
[421012854,1776924632446,-500.0,6.964e-05,2]
[421012855,1776924632455,-500.0,6.964e-05,2]
[421012856,1776924632465,-500.0,6.964e-05,2]
[421012857,1776924632474,-500.0,6.964e-05,2]
[421012858,1776924632483,-500.0,6.964e-05,2]
[421012859,1776924632492,-500.0,6.964e-05,2]
[421012860,1776924632501,-500.0,6.964e-05,2]
[421012861,1776924632511,-500.0,6.964e-05,2]
[421012862,1776924632521,-500.0,6.964e-05,2]
[421012863,1776924632530,-500.0,6.964e-05,2]
[421012864,1776924632539,-500.0,6.964e-05,2]
[421012865,1776924632549,-500.0,6.964e-05,2]
[421012866,1776924632558,-500.0,6.964e-05,2]
[421012867,1776924632567,-210.01225657,6.964e-05,2]
[421012868,1776924632577,-500.0,6.964e-05,2]
[421012869,1776924632586,-500.0,6.964e-05,2]
[421012870,1776924632595,-500.0,6.964e-05,2]
[421012871,1776924632604,-545.40394253,6.964e-05,2]
[421012872,1776924632614,-500.0,6.964e-05,2]
[421012873,1776924632623,-500.0,6.964e-05,2]
[421012874,1776924632632,-500.0,6.964e-05,2]
[421012875,1776924632642,-500.0,6.964e-05,2]
[421012876,1776924632650,-500.0,6.964e-05,2]
[421012877,1776924632659,-500.0,6.964e-05,2]
[421012878,1776924632669,-500.0,6.964e-05,2]
[421012879,1776924632678,-500.0,6.964e-05,2]
[421012880,1776924632688,-5209.6413909,6.965e-05,2]
[421012881,1776924632697,-152770.2303245,6.965e-05,2]
[421012882,1776924632706,-2670.4032869,6.965e-05,2]
[421012883,1776924632715,-3987.7642062,6.965e-05,2]
[421012884,1776924632725,-21633.8805516,6.965e-05,2]
[421012885,1776924632734,-152.0,6.975e-05,7]
[421012886,1776924632743,-150.0,6.986e-05,2]
[421012887,1776924632752,-150.0,6.986e-05,2]
[421012888,1776924632762,-150.0,6.986e-05,2]
[421012889,1776924632770,-3172.0,6.986e-05,2]
[421012890,1776924632779,-150.0,6.989e-05,2]
[421012891,1776924632789,-150.106,6.989e-05,2]
[421012892,1776924632798,-250.092,6.989e-05,2]
[421012893,1776924632807,-240.261,6.989e-05,2]
[421012894,1776924632816,-3530.0,6.989e-05,2]
[421012895,1776924632826,-1349.0,6.989e-05,2]
[421012896,1776924632836,-1048.0,6.989e-05,2]
[421012897,1776924632846,-623.0,6.989e-05,2]
[421012898,1776924632855,-1266.0,6.989e-05,2]
[421012899,1776924632865,-150.0,6.989e-05,2]
[421012900,1776924632875,-152.0,6.994e-05,7]
[421012901,1776924632884,-500.0,6.995e-05,2]
[421012902,1776924632894,-151.0,6.997e-05,2]
[421012903,1776924632903,-155.0,6.999e-05,2]
[421012904,1776924632912,-1063.82653092,6.999e-05,2]
[421012905,1776924632922,-1063.82653092,6.999e-05,2]
[421012906,1776924632932,-1078.84688241,6.999e-05,2]
[421012907,1776924632941,-1078.84688241,6.999e-05,2]
[421012908,1776924632951,-150.0,6.999e-05,2]
[421012909,1776924632960,-1000.0,6.999e-05,2]
[421012910,1776924632969,-1000.0,6.999e-05,2]
[421012911,1776924632978,-1000.0,6.999e-05,2]
[421012912,1776924632989,-1000.0,6.999e-05,2]
[421012913,1776924632999,-1000.0,6.999e-05,2]
[421012914,1776924633008,-810.43848707,6.999e-05,2]
[421012915,1776924633018,-742.0,7e-05,5]
[421012916,1776924633027,-595.0,7e-05,5]
[421012917,1776924633037,-406.0,7e-05,3]
[421012918,1776924633046,-157.0,7e-05,3]
[421012919,1776924633055,-154.0,7e-05,3]
[421012920,1776924633065,-352433.44571361,7e-05,2]
[421012921,1776924633079,-55433.177458,7e-05,2]
[421012922,1776924633090,-29487.0419387,7e-05,2]
[421012923,1776924633109,-3055.26,7e-05,2]
[421012924,1776924633120,-797.78372032,7e-05,2]
[421012925,1776924633132,-1781.4347487,7e-05,2]
[421012926,1776924633143,-618.31401655,7e-05,2]
[421012927,1776924633174,-6299.62282433,7e-05,2]
[421012928,1776924633192,-17109.4597516,7e-05,2]
[421012931,1776924637644,-281.45372572,6.999e-05,2]
[421012932,1776924637654,-318.54627428,6.999e-05,2]
[421012933,1776924637849,-17.86219299,6.999e-05,2]
[421012934,1776924637859,-1288.25361801,7e-05,2]
[421012935,1776924637963,-76165.53357054,7e-05,2]
[421012936,1776924637975,-48993.48432967,7e-05,2]
[421012937,1776924637986,-224583.03874146,7e-05,2]
[421013009,1776924645537,-3781.0,6.999e-05,2]
[421013010,1776924645547,-10259.0,7e-05,2]
[421013011,1776924645590,-7176.19029309,7e-05,2]
[421013023,1776924648403,-758.38768267,7e-05,2]
[421013024,1776924648420,-955.61662759,7e-05,2]
[421013025,1776924648459,-39092.44072773,7e-05,2]
[421013026,1776924648477,-1800.02694516,7e-05,2]
[421013027,1776924648496,-4441.45019744,7e-05,2]
[421013028,1776924648523,-37224.45093944,7e-05,2]
[421013029,1776924648546,-900.0,7e-05,2]
[421013030,1776924648561,-73899.99097037,7e-05,2]
[421013031,1776924728013,10000.01,6.525e-05,2]
[421013032,1776924728039,10000.01,6.525e-05,2]
[421013033,1776924728066,10000.01,6.525e-05,2]
[421013034,1776924728091,10000.01,6.525e-05,2]
[421013035,1776924728118,10000.01,6.525e-05,2]
[421013036,1776924728145,10000.01,6.525e-05,2]
[421013037,1776924728171,10000.01,6.525e-05,2]
[421013038,1776924728196,377.3803,6.525e-05,2]
[421013039,1776924789408,641.0,6.525e-05,3]
[421013040,1776924803746,155.0,6.525e-05,3]
[421013041,1776924848735,609.0,6.525e-05,3]
[421013042,1776924911182,158.0,6.525e-05,3]
[421013043,1776924911451,606.0,6.525e-05,3]
[421013044,1776924964858,603.0,6.525e-05,3]
[421013045,1776924966943,-500.0,6.849e-05,2]
[421013046,1776924993515,-300.0,6.899e-05,2]
[421013047,1776924993542,-11550.0,6.9e-05,2]
[421013048,1776925027974,598.0,6.525e-05,3]
[421013049,1776925086121,593.0,6.525e-05,3]
[421013050,1776925148432,153.0,6.525e-05,3]
[421013051,1776925166518,6107.0,0.00015,120]
[421013052,1776925206049,578.0,6.525e-05,3]
[421013053,1776925206154,158.0,6.525e-05,3]
[421013054,1776925267132,549.0,6.525e-05,3]
[421013055,1776925310137,155.0,6.525e-05,3]
[421013056,1776925387367,522.0,6.525e-05,3]
[421013057,1776925447020,496.0,6.525e-05,3]
[421013058,1776925519461,153.32992861,6.288e-05,2]
[421013059,1776925520790,150.0,6.288e-05,2]
[421013060,1776925520822,150.0,6.637e-05,2]
[421013061,1776925521009,150.0,6.288e-05,2]
[421013062,1776925527963,150.0,6.288e-05,2]
[421013063,1776925533695,371.59892725,6.899e-05,21]
[421013064,1776925534647,371.59892725,6.9e-05,21]
[421013065,1776925535333,371.59892725,6.93e-05,21]
[421013066,1776925535984,371.59892725,6.951e-05,21]
[421013067,1776925538853,152.57168273,6.288e-05,2]
[421013068,1776925539319,150.0,6.288e-05,2]
[421013069,1776925539365,150.0,6.387e-05,2]
[421013070,1776925539405,150.0,6.487e-05,2]
[421013071,1776925539479,150.0,6.587e-05,2]
[421013072,1776925565631,471.0,6.525e-05,3]
[421013073,1776925625660,447.0,6.525e-05,3]
[421013074,1776925644596,-4810.0,6.65e-05,2]
[421013075,1776925644684,-380.01,6.65e-05,2]
[421013076,1776925644716,-150.0,6.687e-05,2]
[421013077,1776925747801,425.0,6.525e-05,3]
[421013078,1776925747922,524.01480647,8e-05,10]
[421013079,1776925808034,158.0,6.525e-05,3]
[421013080,1776925813819,404.0,6.525e-05,3]
[421013081,1776925831855,-150.0,6.787e-05,2]
[421013082,1776925831864,-150.0,6.886e-05,2]
[421013083,1776925831874,-538.82460119,6.887e-05,2]
[421013084,1776925831883,-300.0,6.898e-05,2]
[421013085,1776925831892,-1200.0,6.898e-05,2]
[421013086,1776925831901,-578.20924308,6.899e-05,2]
[421013087,1776925831910,-500.0,6.899e-05,2]
[421013088,1776925831919,-22794.3377,6.9e-05,2]
[421013089,1776925831929,-150.0,6.95e-05,2]
[421013090,1776925831941,-2584.428,6.951e-05,2]
[421013091,1776925831950,-193.418,6.951e-05,2]
[421013092,1776925831960,-275.15034881,6.986e-05,2]
[421013093,1776925831968,-151.94137416,6.986e-05,2]
[421013094,1776925831978,-278.10437608,6.986e-05,2]
[421013095,1776925831992,-161.1050696,6.986e-05,2]
[421013096,1776925832001,-9552.16786547,6.995e-05,2]
[421013097,1776925832011,-151.0,6.995e-05,2]
[421013099,1776925832020,-151.0,6.995e-05,2]
[421013100,1776925832029,-174.61919141,6.995e-05,2]
[421013101,1776925832038,-1428.38747117,6.996e-05,2]
[421013102,1776925832048,-200.0,6.996e-05,2]
[421013103,1776925832057,-721.12765535,6.996e-05,2]
[421013104,1776925832067,-430.79280421,6.996e-05,2]
[421013105,1776925832076,-153.4004789,6.997e-05,2]
[421013106,1776925832086,-1421.80089,6.997e-05,2]
[421013107,1776925832095,-4638.3681436,6.997e-05,2]
[421013108,1776925832105,-173.69959774,6.998e-05,2]
[421013109,1776925832115,-500.0,6.998e-05,2]
[421013110,1776925832125,-500.0,6.998e-05,2]
[421013111,1776925832135,-500.0,6.998e-05,2]
[421013112,1776925832145,-500.0,6.998e-05,2]
[421013113,1776925832155,-640.73466057,6.998e-05,2]
[421013114,1776925832165,-500.0,6.998e-05,2]
[421013115,1776925832174,-500.0,6.998e-05,2]
[421013116,1776925832184,-500.0,6.998e-05,2]
[421013117,1776925832194,-500.0,6.998e-05,2]
[421013118,1776925832203,-500.0,6.998e-05,2]
[421013119,1776925832213,-500.0,6.998e-05,2]
[421013120,1776925832222,-500.0,6.998e-05,2]
[421013121,1776925832231,-500.0,6.998e-05,2]
[421013122,1776925832241,-500.0,6.998e-05,2]
[421013123,1776925832251,-500.0,6.998e-05,2]
[421013124,1776925832260,-500.0,6.998e-05,2]
[421013125,1776925832270,-500.0,6.998e-05,2]
[421013126,1776925832280,-500.0,6.998e-05,2]
[421013127,1776925832290,-500.0,6.998e-05,2]
[421013128,1776925832299,-500.0,6.998e-05,2]
[421013129,1776925832308,-500.0,6.998e-05,2]
[421013130,1776925832317,-500.0,6.998e-05,2]
[421013131,1776925832327,-500.0,6.998e-05,2]
[421013132,1776925832336,-500.0,6.998e-05,2]
[421013133,1776925832345,-500.0,6.998e-05,2]
[421013134,1776925832355,-500.0,6.998e-05,2]
[421013135,1776925832364,-500.0,6.998e-05,2]
[421013136,1776925832378,-500.0,6.998e-05,2]
[421013137,1776925832387,-500.0,6.998e-05,2]
[421013138,1776925832396,-500.0,6.998e-05,2]
[421013139,1776925832405,-500.0,6.998e-05,2]
[421013140,1776925832415,-500.0,6.998e-05,2]
[421013141,1776925832424,-374.14161307,6.998e-05,2]
[421013142,1776925832434,-359.29480349,6.998e-05,2]
[421013143,1776925832444,-186.57983023,6.998e-05,2]
[421013144,1776925832453,-359.3916982,6.998e-05,2]
[421013145,1776925832463,-539.59,6.998e-05,2]
[421013146,1776925832472,-312620.0854312,6.999e-05,2]
[421013147,1776925832482,-8458.6951546,6.999e-05,2]
[421013148,1776925832491,-150.0,6.999e-05,2]
[421013149,1776925832500,-32754.3904081,6.999e-05,2]
[421013150,1776925832510,-150.0,6.999e-05,2]
[421013151,1776925832520,-1266.0,6.999e-05,2]
[421013152,1776925832530,-651.94,6.999e-05,2]
[421013153,1776925832539,-2813.19,6.999e-05,2]
[421013154,1776925832549,-9999.99,6.999e-05,2]
[421013155,1776925832558,-7622.71,6.999e-05,2]
[421013156,1776925832567,-150.99,6.999e-05,2]
[421013157,1776925832577,-999.99,6.999e-05,2]
[421013158,1776925832587,-299.99,6.999e-05,2]
[421013159,1776925832596,-2208.4904907,6.999e-05,2]
[421013160,1776925832609,-2592.4295093,6.999e-05,2]
[421013161,1776925832619,-1588.99,6.999e-05,2]
[421013162,1776925832628,-11412.1,6.999e-05,2]
[421013163,1776925832637,-927.0,6.999e-05,2]
[421013164,1776925832647,-1219.0,6.999e-05,2]
[421013165,1776925832656,-3530.0,6.999e-05,2]
[421013166,1776925832665,-623.0,6.999e-05,2]
[421013167,1776925832675,-475.0,7e-05,5]
[421013168,1776925832685,-532.0,7e-05,5]
[421013169,1776925832694,-21203.52768729,7e-05,2]
[421013170,1776925832706,-120500.204415,7e-05,2]
[421013171,1776925832718,-1254.41808677,7e-05,2]
[421013172,1776925832729,-498.89387459,7e-05,2]
[421013173,1776925837895,-267.29626824,7e-05,2]
[421013174,1776925838160,-317.91339966,7e-05,2]
[421013175,1776925838172,-513.67975255,7e-05,2]
[421013176,1776925838184,-76165.53357054,7e-05,2]
[421013177,1776925838196,-48993.48432967,7e-05,2]
[421013201,1776925839924,-1063.70550529,6.86e-05,2]
[421013202,1776925839936,-1004.83023372,6.86e-05,2]
[421013203,1776925839947,-18731.21926999,7e-05,2]
[421013204,1776925840084,-4033.83217871,7e-05,2]
[421013224,1776925846063,-380.55873006,6.86e-05,2]